fUSD/lending_fUSD_20250716
["ID","MTS","AMOUNT","RATE_DAILY","PERIOD"]
[372594004,1752699035335,-7356.54,0.00019772,2]
[372594005,1752699035344,-891.24,0.00019772,2]
[372594006,1752699035354,-460.0,0.00019772,2]
[372594007,1752699035363,-460.0,0.00019772,2]
[372594008,1752699035373,-460.0,0.00019772,2]
[372594009,1752699035383,-494.42310449,0.00019772,2]
[372594010,1752699035393,-1254.41,0.00019772,2]
[372594011,1752699035402,-460.0,0.00019772,2]
[372594012,1752699035412,-460.0,0.00019772,2]
[372594013,1752699035422,-460.0,0.00019772,2]
[372594014,1752699035432,-460.0,0.00019772,2]
[372594015,1752699035442,-460.0,0.00019772,2]
[372594016,1752699035454,-460.0,0.00019772,2]
[372594017,1752699035463,-460.0,0.00019772,2]
[372594018,1752699035472,-1177.99,0.00019772,2]
[372594019,1752699035482,-381.63199045,0.00019772,2]
[372594020,1752699035492,-460.0,0.00019772,2]
[372594021,1752699035502,-460.0,0.00019772,2]
[372594022,1752699035512,-383.43965968,0.00019772,2]
[372594023,1752699035521,-460.0,0.00019772,2]
[372594024,1752699035530,-4759.54,0.00019772,2]
[372594025,1752699035540,-2333.92,0.00019772,2]
[372594026,1752699035549,-462.59872493,0.00019772,2]
[372594027,1752699035558,-460.0,0.00019772,2]
[372594028,1752699035568,-460.0,0.00019772,2]
[372594029,1752699035577,-460.0,0.00019772,2]
[372594030,1752699035587,-460.0,0.00019772,2]
[372594031,1752699035596,-555.6,0.00019772,2]
[372594032,1752699035606,-460.0,0.00019772,2]
[372594033,1752699035616,-460.0,0.00019772,2]
[372594034,1752699035625,-460.0,0.00019772,2]
[372594035,1752699035636,-460.0,0.00019772,2]
[372594036,1752699035646,-2992.28,0.00019772,2]
[372594037,1752699035655,-629.09,0.00019772,2]
[372594038,1752699035665,-602.88,0.00019772,2]
[372594039,1752699035675,-460.0,0.00019772,2]
[372594040,1752699035684,-460.0,0.00019772,2]
[372594041,1752699035694,-836.89,0.00019772,2]
[372594042,1752699035711,-460.0,0.00019772,2]
[372594043,1752699035721,-2254.62,0.00019772,2]
[372594044,1752699035731,-460.0,0.00019772,2]
[372594045,1752699035741,-460.0,0.00019772,2]
[372594046,1752699035752,-460.0,0.00019772,2]
[372594047,1752699035761,-2733.46,0.00019772,2]
[372594048,1752699035770,-151.0,0.00019772,2]
[372594049,1752699035780,-462.13473534,0.00019772,2]
[372594050,1752699035790,-629.08,0.00019772,2]
[372594051,1752699035799,-460.0,0.00019772,2]
[372594052,1752699035808,-502.47064519,0.00019772,2]
[372594053,1752699035818,-460.0,0.00019772,2]
[372594054,1752699035827,-2886.57,0.00019772,2]
[372594055,1752699035837,-856.38,0.00019772,2]
[372594056,1752699035846,-460.0,0.00019772,2]
[372594057,1752699035855,-460.0,0.00019772,2]
[372594058,1752699035865,-460.0,0.00019772,2]
[372594059,1752699035874,-460.0,0.00019772,2]
[372594060,1752699035884,-460.0,0.00019772,2]
[372594061,1752699035893,-460.0,0.00019772,2]
[372594062,1752699035902,-5059.54,0.00019772,2]
[372594063,1752699035911,-4039.99,0.00019772,2]
[372594064,1752699035921,-460.0,0.00019772,2]
[372594065,1752699035931,-515.7,0.00019772,2]
[372594066,1752699035940,-460.0,0.00019772,2]
[372594067,1752699035954,-5000.0,0.00019772,2]
[372594068,1752699035964,-102811.65,0.00019773,2]
[372594069,1752699035973,-151.0,0.00019773,2]
[372594070,1752699035983,-151.0,0.00019773,2]
[372594071,1752699035992,-807.102719,0.00019773,2]
[372594072,1752699036002,-807.102719,0.00019773,2]
[372594073,1752699036011,-152.46163,0.00019773,2]
[372594074,1752699036021,-151.0,0.00019773,2]
[372594075,1752699036032,-1000.0,0.00019775,2]
[372594076,1752699036041,-6475.07425528,0.00019777,2]
[372594077,1752699036050,-289.68784,0.000198,2]
[372594078,1752699036059,-492591.08701276,0.0001983,2]
[372594079,1752699036069,-15048.2784379,0.0001983,2]
[372594080,1752699036078,-6475.07425528,0.0001983,2]
[372594081,1752699036088,-221.88543242,0.00019831,2]
[372594082,1752699036097,-500.0,0.00019831,2]
[372594083,1752699036109,-150.0,0.00019831,2]
[372594084,1752699036119,-500.0,0.00019831,2]
[372594085,1752699036128,-350.0,0.00019831,2]
[372594086,1752699036137,-250.79487083,0.00019831,2]
[372594087,1752699036147,-1342.0,0.00019831,2]
[372594088,1752699036157,-420.0,0.00019831,2]
[372594089,1752699036167,-480.9106635,0.00019832,2]
[372594090,1752699036176,-1843.17,0.0001985,2]
[372594091,1752699036187,-176.50172928,0.00019861,2]
[372594092,1752699036196,-886.905865,0.00019862,2]
[372594093,1752699036210,-886.905865,0.00019862,2]
[372594094,1752699036220,-661.575154,0.00019862,2]
[372594095,1752699036229,-661.575154,0.00019862,2]
[372594096,1752699036239,-269.318438,0.00019862,2]
[372594097,1752699036248,-269.318438,0.00019862,2]
[372594098,1752699036258,-151.0,0.00019862,2]
[372594099,1752699036267,-151.0,0.00019862,2]
[372594100,1752699036277,-470.315021,0.00019862,2]
[372594101,1752699036287,-470.315021,0.00019862,2]
[372594102,1752699036296,-4749.24456756,0.00019862,2]
[372594103,1752699036306,-474.83615677,0.0001987,2]
[372594104,1752699036316,-299.87113297,0.0001987,2]
[372594105,1752699036326,-351.0653915,0.0001987,2]
[372594106,1752699036335,-500.0,0.0001987,2]
[372594107,1752699036345,-500.0,0.0001987,2]
[372594108,1752699036355,-336.6382937,0.0001987,2]
[372594109,1752699036364,-500.0,0.0001987,2]
[372594110,1752699036374,-500.0,0.0001987,2]
[372594111,1752699036383,-460.0,0.0001987,2]
[372594112,1752699036393,-460.0,0.0001987,2]
[372594113,1752699036402,-460.0,0.0001987,2]
[372594115,1752699036412,-460.0,0.0001987,2]
[372594117,1752699036421,-460.0,0.0001987,2]
[372594119,1752699036431,-341.18042383,0.0001987,2]
[372594121,1752699036440,-460.0,0.0001987,2]
[372594123,1752699036452,-460.0,0.0001987,2]
[372594125,1752699036461,-628.95,0.0001987,2]
[372594127,1752699036470,-628.95,0.0001987,2]
[372594128,1752699036480,-492.07010392,0.0001987,2]
[372594130,1752699036489,-460.0,0.0001987,2]
[372594132,1752699036499,-440.11405012,0.0001987,2]
[372594134,1752699036508,-460.0,0.0001987,2]
[372594136,1752699036518,-460.0,0.0001987,2]
[372594138,1752699036528,-215.45062802,0.0001987,2]
[372594140,1752699036537,-460.0,0.0001987,2]
[372594142,1752699036547,-249.18887216,0.0001987,2]
[372594144,1752699036556,-460.0,0.0001987,2]
[372594146,1752699036565,-460.0,0.0001987,2]
[372594148,1752699036575,-2246.71,0.0001987,2]
[372594150,1752699036584,-1929.9,0.0001987,2]
[372594152,1752699036593,-2693.93,0.0001987,2]
[372594154,1752699036603,-891.02,0.0001987,2]
[372594156,1752699036612,-2217.63,0.0001987,2]
[372594157,1752699036622,-1009.98,0.0001987,2]
[372594159,1752699036632,-460.0,0.0001987,2]
[372594161,1752699036641,-770.5,0.0001987,2]
[372594163,1752699036651,-2228.89,0.0001987,2]
[372594165,1752699036660,-849.722106,0.0001987,2]
[372594168,1752699036670,-1808.63,0.0001987,2]
[372594169,1752699036680,-849.722106,0.0001987,2]
[372594171,1752699036689,-1986.761778,0.0001987,2]
[372594173,1752699036699,-158.833951,0.0001987,2]
[372594175,1752699036709,-156.019408,0.0001987,2]
[372594177,1752699036718,-1101.61,0.0001987,2]
[372594179,1752699036727,-2074.897827,0.0001987,2]
[372594181,1752699036736,-2084.207242,0.0001987,2]
[372594183,1752699036746,-151.0,0.0001987,2]
[372594185,1752699036756,-786.18,0.0001987,2]
[372594187,1752699036765,-2722.54,0.0001987,2]
[372594189,1752699036774,-2367.97,0.0001987,2]
[372594191,1752699036783,-2732.86,0.0001987,2]
[372594193,1752699036793,-9003.32,0.0001987,2]
[372594195,1752699036802,-532.85,0.0001987,2]
[372594197,1752699036811,-1914.41,0.0001987,2]
[372594199,1752699036820,-1935.01,0.0001987,2]
[372594201,1752699036829,-151.0,0.0001987,2]
[372594203,1752699036839,-151.0,0.0001987,2]
[372594204,1752699036848,-151.0,0.0001987,2]
[372594206,1752699036857,-596.58,0.0001987,2]
[372594208,1752699036867,-2459.88,0.0001987,2]
[372594210,1752699036876,-807.102719,0.0001987,2]
[372594212,1752699036885,-1283.34,0.0001987,2]
[372594214,1752699036895,-2489.35,0.0001987,2]
[372594216,1752699036904,-807.102719,0.0001987,2]
[372594218,1752699036914,-1415.5,0.0001987,2]
[372594220,1752699036923,-694.18,0.0001987,2]
[372594222,1752699036933,-2154.29,0.0001987,2]
[372594224,1752699036943,-974.85,0.0001987,2]
[372594226,1752699036953,-1343.22,0.0001987,2]
[372594228,1752699036962,-151.0,0.0001987,2]
[372594230,1752699036972,-151.0,0.0001987,2]
[372594232,1752699036981,-151.0,0.0001987,2]
[372594234,1752699036991,-173.061844,0.0001987,2]
[372594236,1752699037001,-5123.62,0.0001987,2]
[372594238,1752699037010,-78325.86204289,0.00019871,2]
[372594240,1752699037019,-460.0,0.00019871,2]
[372594242,1752699037029,-460.0,0.00019871,2]
[372594244,1752699037038,-1000.0,0.00019871,2]
[372594246,1752699037047,-460.0,0.00019871,2]
[372594248,1752699037056,-460.0,0.00019871,2]
[372594249,1752699037065,-460.0,0.00019871,2]
[372594251,1752699037075,-460.0,0.00019871,2]
[372594252,1752699037084,-460.0,0.00019871,2]
[372594253,1752699037094,-460.0,0.00019871,2]
[372594254,1752699037104,-460.0,0.00019871,2]
[372594255,1752699037116,-460.0,0.00019871,2]
[372594256,1752699037125,-460.0,0.00019871,2]
[372594257,1752699037135,-570.65,0.00019871,2]
[372594258,1752699037144,-460.0,0.00019871,2]
[372594259,1752699037154,-460.0,0.00019871,2]
[372594260,1752699037163,-460.0,0.00019871,2]
[372594261,1752699037173,-460.0,0.00019871,2]
[372594262,1752699037184,-460.0,0.00019871,2]
[372594264,1752699037194,-460.0,0.00019871,2]
[372594265,1752699037206,-460.0,0.00019871,2]
[372594267,1752699037215,-460.0,0.00019871,2]
[372594269,1752699037225,-460.0,0.00019871,2]
[372594271,1752699037234,-484.34628974,0.00019871,2]
[372594273,1752699037244,-465.48,0.00019871,2]
[372594274,1752699037253,-460.0,0.00019871,2]
[372594276,1752699037263,-460.0,0.00019871,2]
[372594278,1752699037272,-460.0,0.00019871,2]
[372594280,1752699037281,-460.0,0.00019871,2]
[372594282,1752699037291,-500.0,0.00019871,2]
[372594284,1752699037300,-460.0,0.00019871,2]
[372594286,1752699037310,-460.0,0.00019871,2]
[372594288,1752699037319,-460.0,0.00019871,2]
[372594290,1752699037328,-460.0,0.00019871,2]
[372594292,1752699037338,-460.0,0.00019871,2]
[372594294,1752699037347,-460.0,0.00019871,2]
[372594296,1752699037357,-460.0,0.00019871,2]
[372594298,1752699037366,-460.0,0.00019871,2]
[372594300,1752699037375,-460.0,0.00019871,2]
[372594302,1752699037384,-460.92467101,0.00019871,2]
[372594304,1752699037394,-460.0,0.00019871,2]
[372594306,1752699037404,-460.0,0.00019871,2]
[372594308,1752699037413,-460.0,0.00019871,2]
[372594309,1752699037423,-460.0,0.00019871,2]
[372594311,1752699037432,-460.0,0.00019871,2]
[372594314,1752699037442,-460.0,0.00019871,2]
[372594316,1752699037452,-580.38,0.00019871,2]
[372594319,1752699037462,-460.0,0.00019871,2]
[372594322,1752699037472,-460.0,0.00019871,2]
[372594325,1752699037481,-460.0,0.00019871,2]
[372594328,1752699037491,-460.0,0.00019871,2]
[372594331,1752699037500,-1055.72,0.00019871,2]
[372594334,1752699037510,-460.0,0.00019871,2]
[372594337,1752699037520,-460.0,0.00019871,2]
[372594339,1752699037530,-460.0,0.00019871,2]
[372594341,1752699037540,-460.0,0.00019871,2]
[372594343,1752699037550,-460.0,0.00019871,2]
[372594345,1752699037560,-460.0,0.00019871,2]
[372594347,1752699037569,-1055.16,0.00019871,2]
[372594349,1752699037579,-970.84,0.00019871,2]
[372594351,1752699037590,-460.0,0.00019871,2]
[372594353,1752699037600,-460.0,0.00019871,2]
[372594355,1752699037610,-460.0,0.00019871,2]
[372594357,1752699037620,-460.0,0.00019871,2]
[372594359,1752699037630,-460.0,0.00019871,2]
[372594361,1752699037640,-460.0,0.00019871,2]
[372594363,1752699037649,-460.0,0.00019871,2]
[372594365,1752699037658,-460.0,0.00019871,2]
[372594367,1752699037668,-460.0,0.00019871,2]
[372594369,1752699037677,-460.0,0.00019871,2]
[372594371,1752699037687,-460.0,0.00019871,2]
[372594373,1752699037697,-460.0,0.00019871,2]
[372594375,1752699037708,-666.57,0.00019871,2]
[372594377,1752699037717,-648.65,0.00019871,2]
[372594379,1752699037727,-460.0,0.00019871,2]
[372594381,1752699037736,-460.0,0.00019871,2]
[372594383,1752699037746,-460.0,0.00019871,2]
[372594385,1752699037755,-460.0,0.00019871,2]
[372594386,1752699037765,-2642.23,0.00019871,2]
[372594388,1752699037774,-1263.14,0.00019871,2]
[372594390,1752699037783,-460.0,0.00019871,2]
[372594392,1752699037793,-460.0,0.00019871,2]
[372594394,1752699037803,-460.0,0.00019871,2]
[372594397,1752699037812,-460.0,0.00019871,2]
[372594398,1752699037822,-460.0,0.00019871,2]
[372594401,1752699037831,-1074.81,0.00019871,2]
[372594402,1752699037842,-460.0,0.00019871,2]
[372594404,1752699037852,-460.0,0.00019871,2]
[372594407,1752699037861,-598.71,0.00019871,2]
[372594409,1752699037871,-460.0,0.00019871,2]
[372594411,1752699037880,-560.94,0.00019871,2]
[372594412,1752699037890,-460.0,0.00019871,2]
[372594414,1752699037899,-895.44,0.00019871,2]
[372594416,1752699037908,-460.0,0.00019871,2]
[372594418,1752699037918,-460.0,0.00019871,2]
[372594420,1752699037927,-577.27,0.00019871,2]
[372594422,1752699037938,-460.0,0.00019871,2]
[372594424,1752699037947,-460.0,0.00019871,2]
[372594426,1752699037958,-460.0,0.00019871,2]
[372594428,1752699037968,-1137.43,0.00019871,2]
[372594430,1752699037977,-745.72,0.00019871,2]
[372594432,1752699037987,-460.0,0.00019871,2]
[372594434,1752699037997,-460.0,0.00019871,2]
[372594436,1752699038006,-460.0,0.00019871,2]
[372594438,1752699038015,-557.4,0.00019871,2]
[372594440,1752699038024,-460.0,0.00019871,2]
[372594442,1752699038033,-460.0,0.00019871,2]
[372594444,1752699038043,-155.971535,0.00019871,2]
[372594446,1752699038052,-818.98,0.00019871,2]
[372594448,1752699038062,-460.0,0.00019871,2]
[372594450,1752699038071,-460.0,0.00019871,2]
[372594452,1752699038080,-762.57,0.00019871,2]
[372594454,1752699038090,-460.0,0.00019871,2]
[372594456,1752699038099,-460.0,0.00019871,2]
[372594457,1752699038112,-460.0,0.00019871,2]
[372594458,1752699038122,-460.0,0.00019871,2]
[372594459,1752699038131,-886.905865,0.00019871,2]
[372594460,1752699038140,-757.34,0.00019871,2]
[372594461,1752699038150,-460.0,0.00019871,2]
[372594462,1752699038162,-943.03,0.00019871,2]
[372594463,1752699038171,-886.905865,0.00019871,2]
[372594464,1752699038180,-460.0,0.00019871,2]
[372594465,1752699038191,-492.66725338,0.00019871,2]
[372594466,1752699038202,-689.42,0.00019871,2]
[372594467,1752699038213,-460.0,0.00019871,2]
[372594468,1752699038223,-474.07636782,0.00019871,2]
[372594469,1752699038233,-581.85,0.00019871,2]
[372594470,1752699038242,-460.0,0.00019871,2]
[372594471,1752699038253,-415.27741341,0.00019871,2]
[372594472,1752699038264,-504.16,0.00019871,2]
[372594473,1752699038274,-461.37196757,0.00019871,2]
[372594474,1752699038284,-460.0,0.00019871,2]
[372594475,1752699038294,-460.0,0.00019871,2]
[372594476,1752699038305,-1379.61,0.00019871,2]
[372594477,1752699038315,-1672.9,0.00019871,2]
[372594478,1752699038325,-460.0,0.00019871,2]
[372594479,1752699038335,-460.0,0.00019871,2]
[372594480,1752699038346,-460.0,0.00019871,2]
[372594481,1752699038356,-590.17,0.00019871,2]
[372594483,1752699038367,-460.0,0.00019871,2]
[372594485,1752699038377,-4039.46,0.00019871,2]
[372594488,1752699038387,-460.0,0.00019871,2]
[372594489,1752699038396,-460.0,0.00019871,2]
[372594491,1752699038405,-460.0,0.00019871,2]
[372594493,1752699038415,-460.0,0.00019871,2]
[372594495,1752699038424,-566.17,0.00019871,2]
[372594497,1752699038434,-263.91862781,0.00019871,2]
[372594499,1752699038444,-460.0,0.00019871,2]
[372594502,1752699038455,-460.0,0.00019871,2]
[372594504,1752699038465,-460.0,0.00019871,2]
[372594506,1752699038475,-460.0,0.00019871,2]
[372594508,1752699038486,-500.0,0.00019871,2]
[372594510,1752699038495,-500.0,0.00019871,2]
[372594535,1752699038743,-500.0,0.00019871,2]
[372594537,1752699038754,-500.0,0.00019871,2]
[372594539,1752699038763,-748.43,0.00019871,2]
[372594541,1752699038773,-460.0,0.00019871,2]
[372594543,1752699038783,-460.88981099,0.00019871,2]
[372594545,1752699038792,-460.0,0.00019871,2]
[372594547,1752699038802,-692.03,0.00019871,2]
[372594549,1752699038811,-895.22,0.00019871,2]
[372594551,1752699038820,-661.575154,0.00019871,2]
[372594553,1752699038830,-151.0,0.00019871,2]
[372594555,1752699038839,-151.0,0.00019871,2]
[372594557,1752699038848,-151.0,0.00019871,2]
[372594559,1752699038860,-500.0,0.00019871,2]
[372594561,1752699038869,-460.0,0.00019871,2]
[372594563,1752699038879,-661.575154,0.00019871,2]
[372594564,1752699038888,-463.22049782,0.00019871,2]
[372594567,1752699038898,-460.0,0.00019871,2]
[372594568,1752699038907,-460.0,0.00019871,2]
[372594570,1752699038917,-460.0,0.00019871,2]
[372594572,1752699038927,-558.6,0.00019871,2]
[372594574,1752699038936,-460.0,0.00019871,2]
[372594576,1752699038946,-460.0,0.00019871,2]
[372594578,1752699038957,-574.64,0.00019871,2]
[372594580,1752699038967,-460.0,0.00019871,2]
[372594582,1752699038978,-740.83,0.00019871,2]
[372594584,1752699038988,-460.0,0.00019871,2]
[372594586,1752699038998,-460.0,0.00019871,2]
[372594588,1752699039007,-518.59,0.00019871,2]
[372594590,1752699039017,-3992.68,0.00019871,2]
[372594592,1752699039027,-460.0,0.00019871,2]
[372594594,1752699039036,-460.0,0.00019871,2]
[372594596,1752699039046,-556.78,0.00019871,2]
[372594598,1752699039055,-460.0,0.00019871,2]
[372594600,1752699039065,-2330.78,0.00019871,2]
[372594602,1752699039074,-198.14320143,0.00019871,2]
[372594604,1752699039084,-460.0,0.00019871,2]
[372594606,1752699039094,-460.0,0.00019871,2]
[372594608,1752699039104,-5494.6,0.00019871,2]
[372594610,1752699039117,-460.0,0.00019871,2]
[372594612,1752699039127,-460.0,0.00019871,2]
[372594614,1752699039136,-460.0,0.00019871,2]
[372594616,1752699039146,-269.318438,0.00019871,2]
[372594618,1752699039156,-269.318438,0.00019871,2]
[372594620,1752699039166,-2488.13,0.00019871,2]
[372594622,1752699039176,-460.0,0.00019871,2]
[372594624,1752699039186,-460.0,0.00019871,2]
[372594626,1752699039195,-460.0,0.00019871,2]
[372594628,1752699039206,-500.0,0.00019871,2]
[372594630,1752699039216,-1805.12,0.00019871,2]
[372594632,1752699039226,-1300.35,0.00019871,2]
[372594634,1752699039236,-462.04543819,0.00019871,2]
[372594636,1752699039246,-1052.29,0.00019871,2]
[372594638,1752699039256,-1715.49,0.00019871,2]
[372594640,1752699039267,-460.0,0.00019871,2]
[372594642,1752699039277,-460.0,0.00019871,2]
[372594644,1752699039286,-1742.08,0.00019871,2]
[372594646,1752699039296,-460.0,0.00019871,2]
[372594648,1752699039306,-151.0,0.00019871,2]
[372594650,1752699039317,-9358.89,0.00019871,2]
[372594652,1752699039326,-460.82256757,0.00019871,2]
[372594654,1752699039336,-610.02,0.00019871,2]
[372594656,1752699039345,-1862.64,0.00019871,2]
[372594658,1752699039355,-460.0,0.00019871,2]
[372594660,1752699039365,-746.73,0.00019871,2]
[372594661,1752699039375,-1769.88,0.00019871,2]
[372594664,1752699039387,-157.971752,0.00019871,2]
[372594666,1752699039398,-480.79,0.00019871,2]
[372594668,1752699039408,-3084.35,0.00019871,2]
[372594670,1752699039418,-460.0,0.00019871,2]
[372594672,1752699039428,-1442.31,0.00019871,2]
[372594674,1752699039439,-460.0,0.00019871,2]
[372594676,1752699039449,-566.96,0.00019871,2]
[372594678,1752699039459,-849.722106,0.00019871,2]
[372594680,1752699039469,-463.42,0.00019871,2]
[372594682,1752699039479,-849.722106,0.00019871,2]
[372594684,1752699039489,-849.722106,0.00019871,2]
[372594686,1752699039498,-460.0,0.00019871,2]
[372594688,1752699039508,-849.722106,0.00019871,2]
[372594691,1752699039517,-849.722106,0.00019871,2]
[372594694,1752699039527,-460.0,0.00019871,2]
[372594697,1752699039536,-849.722106,0.00019871,2]
[372594700,1752699039546,-849.722106,0.00019871,2]
[372594703,1752699039555,-554.57,0.00019871,2]
[372594707,1752699039565,-849.722106,0.00019871,2]
[372594709,1752699039575,-849.722106,0.00019871,2]
[372594714,1752699039584,-849.722106,0.00019871,2]
[372594717,1752699039593,-460.0,0.00019871,2]
[372594720,1752699039603,-460.0,0.00019871,2]
[372594724,1752699039612,-460.0,0.00019871,2]
[372594727,1752699039622,-1790.98,0.00019871,2]
[372594730,1752699039631,-2595.3,0.00019871,2]
[372594734,1752699039641,-832.9,0.00019871,2]
[372594737,1752699039650,-5253.29,0.00019871,2]
[372594740,1752699039660,-151.0,0.00019871,2]
[372594742,1752699039670,-151.0,0.00019871,2]
[372594745,1752699039679,-151.0,0.00019871,2]
[372594748,1752699039689,-151.0,0.00019871,2]
[372594751,1752699039698,-151.0,0.00019871,2]
[372594753,1752699039709,-291.296084,0.00019871,2]
[372594755,1752699039719,-1124.77,0.00019871,2]
[372594757,1752699039728,-1170.66,0.00019871,2]
[372594759,1752699039738,-611.42,0.00019871,2]
[372594762,1752699039749,-473.81385536,0.00019871,2]
[372594763,1752699039759,-460.0,0.00019871,2]
[372594765,1752699039770,-1403.88,0.00019871,2]
[372594767,1752699039782,-4057.66,0.00019871,2]
[372594770,1752699039792,-460.0,0.00019871,2]
[372594771,1752699039802,-1479.86,0.00019871,2]
[372594773,1752699039812,-460.0,0.00019871,2]
[372594775,1752699039821,-580.18,0.00019871,2]
[372594777,1752699039831,-470.315021,0.00019871,2]
[372594779,1752699039840,-460.0,0.00019871,2]
[372594781,1752699039849,-470.315021,0.00019871,2]
[372594783,1752699039859,-1589.5,0.00019871,2]
[372594785,1752699039869,-4681.67,0.00019871,2]
[372594787,1752699039878,-974.78,0.00019871,2]
[372594789,1752699039888,-538.12,0.00019871,2]
[372594791,1752699039898,-460.0,0.00019871,2]
[372594793,1752699039908,-460.0,0.00019871,2]
[372594795,1752699039918,-500.0,0.00019871,2]
[372594798,1752699039928,-500.0,0.00019871,2]
[372594799,1752699039937,-500.0,0.00019871,2]
[372594802,1752699039947,-500.0,0.00019871,2]
[372594804,1752699039958,-2666.51,0.00019871,2]
[372594805,1752699039967,-460.0,0.00019871,2]
[372594808,1752699039977,-1373.4,0.00019871,2]
[372594809,1752699039987,-1594.14,0.00019871,2]
[372594812,1752699039999,-460.0,0.00019871,2]
[372594814,1752699040008,-460.0,0.00019871,2]
[372594816,1752699040018,-2499.97,0.00019871,2]
[372594818,1752699040027,-3023.28,0.00019871,2]
[372594819,1752699040037,-460.0,0.00019871,2]
[372594822,1752699040047,-668.38,0.00019871,2]
[372594823,1752699040059,-460.0,0.00019871,2]
[372594826,1752699040070,-1034.14,0.00019871,2]
[372594828,1752699040080,-1347.24,0.00019871,2]
[372594829,1752699040089,-460.0,0.00019871,2]
[372594831,1752699040099,-2636.11,0.00019871,2]
[372594833,1752699040111,-460.0,0.00019871,2]
[372594835,1752699040120,-1696.25,0.00019871,2]
[372594837,1752699040130,-2077.87,0.00019871,2]
[372594839,1752699040140,-1091.44,0.00019871,2]
[372594842,1752699040150,-1114.41,0.00019871,2]
[372594843,1752699040160,-3659.64,0.00019871,2]
[372594845,1752699040170,-460.0,0.00019871,2]
[372594848,1752699040180,-4564.39,0.00019871,2]
[372594850,1752699040190,-151.0,0.00019871,2]
[372594852,1752699040200,-151.0,0.00019871,2]
[372594854,1752699040211,-1813.05,0.00019871,2]
[372594855,1752699040220,-151.0,0.00019871,2]
[372594857,1752699040230,-151.0,0.00019871,2]
[372594859,1752699040239,-151.0,0.00019871,2]
[372594862,1752699040249,-460.0,0.00019871,2]
[372594864,1752699040259,-715.89,0.00019871,2]
[372594866,1752699040268,-588.03122197,0.00019871,2]
[372594868,1752699040278,-807.102719,0.00019871,2]
[372594870,1752699040291,-807.102719,0.00019871,2]
[372594872,1752699040301,-2578.06,0.00019871,2]
[372594874,1752699040311,-483.81585413,0.00019871,2]
[372594876,1752699040321,-807.102719,0.00019871,2]
[372594878,1752699040331,-807.102719,0.00019871,2]
[372594880,1752699040340,-1520.91,0.00019871,2]
[372594882,1752699040349,-807.102719,0.00019871,2]
[372594884,1752699040359,-807.102719,0.00019871,2]
[372594886,1752699040369,-2287.75,0.00019871,2]
[372594888,1752699040378,-460.74712484,0.00019871,2]
[372594890,1752699040387,-807.102719,0.00019871,2]
[372594892,1752699040398,-807.102719,0.00019871,2]
[372594894,1752699040409,-807.102719,0.00019871,2]
[372594896,1752699040419,-807.102719,0.00019871,2]
[372594897,1752699040430,-460.0,0.00019871,2]
[372594900,1752699040439,-807.102719,0.00019871,2]
[372594901,1752699040450,-807.102719,0.00019871,2]
[372594902,1752699040461,-200.33976312,0.00019871,2]